bitfinex/quotes_SOLUSD_20250118
["timestamp","ask_amount","ask_price","bid_price","bid_amount"]
[1737172844353,27.7276338,220.52,220.4,32.2648338]
[1737172844553,27.7276338,220.56,220.44,27.7276338]
[1737172844856,27.7276338,220.6,220.48,27.7276338]
[1737172845348,38.5155,220.69,220.46,27.7276338]
[1737172845349,27.7276338,220.58,220.46,27.7276338]
[1737172845565,38.5155,220.69,220.56,27.7276338]
[1737172845566,27.7276338,220.68,220.56,27.7276338]
[1737172845765,4.5312,220.69,220.58,27.7276338]
[1737172845967,27.7276338,220.65,220.52,27.7276338]
[1737172846187,15.8593,220.69,220.46,4.5359]
[1737172846977,4.5312,220.69,220.47,10.7588]
[1737172847284,4.5312,220.69,220.57,27.7276338]
[1737172847584,27.7276338,220.68,220.55,27.7276338]
[1737172847957,4.5316,220.67,220.55,32.2615338]
[1737172848164,27.7276338,220.6,220.48,27.7276338]
[1737172848364,4.5942,220.69,220.47,26.6338]
[1737172848582,4.5942,220.69,220.49,18.128244]
[1737172849084,4.5942,220.69,220.47,26.6338]
[1737172849486,4.5942,220.69,220.58,27.7276338]
[1737172849670,4.5942,220.69,220.68,27.7276338]
[1737172850061,0.063,220.69,220.66,27.7276338]
[1737172850292,0.063,220.69,220.68,27.7276338]
[1737172850463,0.063,220.69,220.48,27.7276338]
[1737172850658,20.0,220.62,220.55,27.7276338]
[1737172850887,0.063,220.69,220.61,27.7276338]
[1737172851785,13.6,220.68,220.61,27.7276338]
[1737172851964,13.6,220.68,220.63,27.7276338]
[1737172852170,4.5943,220.69,220.65,27.7276338]
[1737172853193,0.063,220.69,220.65,27.7276338]
[1737172853874,0.063,220.69,220.68,27.7276338]
[1737172854077,13.6,220.68,220.55,27.7276338]
[1737172854277,13.6,220.68,220.57,27.7276338]
[1737172854471,27.7906338,220.69,220.59,27.7276338]
[1737172854787,0.063,220.69,220.65,27.7276338]
[1737172854988,0.063,220.69,220.68,27.7276338]
[1737172857764,13.6,220.74,220.68,55.4552676]
[1737172857987,11.308,220.95,220.68,55.4552676]
[1737172857988,0.063,220.88,220.73,83.1829014]
[1737172858296,0.063,221.11,220.9,22.70296936]
[1737172858475,0.063,221.39,221.07,226.38099586]
[1737172858668,4.5184,221.32,221.07,223.88099586]
[1737172858873,0.063,221.39,221.22,55.4552676]
[1737172859091,40.48286659,221.23,221.22,55.4552676]
[1737172859295,0.063,221.39,221.22,83.1829014]
[1737172859503,0.063,221.39,221.31,27.7276338]
[1737172859671,0.063,221.39,221.06,15.8327]
[1737172859870,27.28,221.36,221.0,4.5248]
[1737172860082,2.95,221.39,221.0,15.8367]
[1737172860083,13.6,221.38,221.0,15.8367]
[1737172860389,0.063,221.39,221.01,1.50566154]
[1737172860598,0.063,221.39,221.01,7.03173384]
[1737172860896,0.063,221.39,221.3,27.7276338]
[1737172861194,0.063,221.39,221.28,27.7276338]
[1737172861385,0.063,221.39,221.01,7.03173384]
[1737172861386,41.3276338,221.31,221.19,27.7276338]
[1737172861695,27.7906338,221.39,221.04,15.8341]
[1737172861696,4.5171,221.38,221.04,15.8341]
[1737172861997,20.0,221.35,221.05,1.95307032]
[1737172862177,20.0,221.35,221.04,15.8341]
[1737172862376,4.5171,221.38,221.07,20.0]
[1737172862780,0.063,221.39,221.06,1.95298197]
[1737172862781,0.063,221.39,221.36,27.7276338]
[1737172862992,0.063,221.39,221.33,27.7276338]
[1737172863171,0.063,221.39,221.35,27.7276338]
[1737172863385,0.0001,221.4,221.39,24.5169]
[1737172863902,0.0001,221.4,221.39,34.19460469]
[1737172864710,0.0001,221.4,221.39,29.67770469]
[1737172864890,0.0001,221.4,221.39,34.19460469]
[1737172865089,27.7276338,221.58,221.42,20.0]
[1737172865404,27.7276338,221.59,221.42,20.0]
[1737172865693,0.063,221.63,221.43,4.516]
[1737172865994,0.063,221.63,221.47,20.0]
[1737172866589,0.063,221.63,221.59,27.7276338]
[1737172866996,0.063,221.63,221.62,47.7276338]
[1737172867177,0.0001,221.63,221.62,47.7276338]
[1737172867379,0.0001,221.63,221.62,52.2398338]
[1737172868478,4.5065,221.9,221.62,63.5203338]
[1737172868685,27.7276338,221.74,221.62,32.2398338]
[1737172868887,27.7276338,221.85,221.73,27.7276338]
[1737172869109,27.7276338,221.87,221.75,27.7276338]
[1737172869278,27.7276338,221.85,221.66,27.7276338]
[1737172869479,32.2353338,221.85,221.74,27.7276338]
[1737172869679,4.5077,221.85,221.71,27.7276338]
[1737172869981,0.063,221.91,221.67,15.7892]
[1737172870195,0.063,221.91,221.9,27.7276338]
[1737172870877,0.063,222.08,221.9,55.4552676]
[1737172871088,0.063,222.08,222.05,27.7276338]
[1737172871391,4.503,222.07,222.01,27.7276338]
[1737172871605,27.7276338,222.06,221.95,27.7276338]
[1737172871911,27.7906338,222.08,221.97,27.7276338]
[1737172872207,0.063,222.08,221.99,27.7276338]
[1737172872507,13.6,221.99,221.69,15.7878]
[1737172872693,0.063,222.08,221.69,24.7078]
[1737172873003,0.063,222.08,221.72,20.0]
[1737172873601,0.063,222.08,221.76,20.0]
[1737172873811,27.7276338,222.06,221.96,27.7276338]
[1737172873992,27.7906338,222.08,221.98,27.7276338]
[1737172874705,0.063,222.08,221.94,27.7276338]
[1737172874899,27.7276338,221.99,221.89,27.7276338]
[1737172875202,27.7276338,221.99,221.78,27.7276338]
[1737172875203,27.7276338,222.05,221.96,27.7276338]
[1737172875509,20.0,222.07,221.79,22.28786504]
[1737172875808,32.2308338,222.06,221.96,27.7276338]
[1737172876517,4.5032,222.06,221.98,27.7276338]
[1737172876878,0.063,222.08,222.03,27.7276338]
[1737172877083,0.063,222.08,221.94,4.5057]
[1737172877084,0.063,222.08,222.05,27.7276338]
[1737172877496,4.5659,222.08,222.03,27.7276338]
[1737172877800,0.063,222.08,222.03,27.7276338]
[1737172877998,0.063,222.08,222.05,27.7276338]
[1737172878210,27.7276338,222.16,222.07,27.7276338]
[1737172878505,27.7276338,222.14,222.05,27.7276338]
[1737172878698,27.7276338,222.14,222.03,27.7276338]
[1737172878906,32.2279338,222.21,222.11,27.7276338]
[1737172879093,4.5003,222.21,222.13,27.7276338]
[1737172879295,4.5003,222.21,222.15,27.7276338]
[1737172879881,27.7276338,222.2,222.09,27.7276338]
[1737172880409,27.7276338,222.15,221.93,11.2644]
[1737172880587,20.0,222.12,222.06,27.7276338]
[1737172881088,27.7276338,222.15,222.04,27.7276338]
[1737172881398,20.0,222.03,221.95,27.7276338]
[1737172881610,27.7276338,222.04,221.93,27.7276338]
[1737172881908,4.5038,222.03,221.93,27.7276338]
[1737172882108,4.5036,222.05,221.95,27.7276338]
[1737172882597,20.0,221.99,221.91,27.7276338]
[1737172882803,27.7276338,221.92,221.82,4.508]
[1737172883103,27.7276338,221.94,221.84,27.7276338]
[1737172883307,20.0,222.02,221.72,31.3299]
[1737172883508,33.6,221.99,221.69,18.028377]
[1737172883696,13.6,221.89,221.53,15.7991]
[1737172884004,20.0,221.84,221.55,18.028377]
[1737172884191,13.6,221.79,221.51,4.5144]
[1737172884510,27.7276338,221.64,221.55,27.7276338]
[1737172884704,27.7276338,221.78,221.45,18.028377]
[1737172884705,20.0,221.57,221.45,18.028377]
[1737172884879,27.7276338,221.52,221.41,4.5164]
[1737172885080,27.7276338,221.54,221.42,27.7276338]
[1737172885296,27.7276338,221.65,221.47,27.7276338]
[1737172885491,20.0,221.62,221.4,6.46658281]
[1737172885693,20.0,221.62,221.43,20.0]
[1737172885887,15.7834,221.75,221.44,15.8055]
[1737172886099,15.7834,221.75,221.45,0.67698634]
[1737172886300,27.7276338,221.68,221.57,27.7276338]
[1737172886499,32.2371338,221.75,221.64,27.7276338]
[1737172886893,27.7276338,221.77,221.55,20.0]
[1737172887092,11.269,221.85,221.51,8.82]
[1737172887313,11.269,221.85,221.51,9.49685728]
[1737172887498,27.7276338,221.7,221.58,27.7276338]
[1737172887688,11.269,221.85,221.62,27.7276338]
[1737172887689,27.7276338,221.72,221.62,27.7276338]
[1737172887890,27.7276338,221.76,221.66,27.7276338]
[1737172888106,27.7276338,221.78,221.68,27.7276338]
[1737172888309,27.7276338,221.82,221.72,27.7276338]
[1737172888516,18.0418,221.92,221.79,20.0]
[1737172888820,18.0418,221.92,221.86,27.7276338]
[1737172889114,11.5223,222.17,221.83,20.0]
[1737172889283,27.7276338,221.98,221.88,27.7276338]
[1737172889687,27.7276338,222.0,221.88,27.7276338]
[1737172890113,27.7276338,222.0,221.89,4.5067]
[1737172890407,27.7276338,222.0,221.9,27.7276338]
[1737172890912,0.09730349,221.91,221.89,4.5067]
[1737172891090,0.09730349,221.91,221.89,24.5067]
[1737172891291,0.09730349,221.91,221.89,25.18234575]
[1737172891488,0.09730349,221.91,221.89,4.5067]
[1737172892514,0.09730349,221.91,221.85,20.0]
[1737172892683,0.09730349,221.91,221.8,18.018609]
[1737172892684,0.09730349,221.91,221.88,27.7276338]
[1737172892885,0.05133504,221.96,221.83,4.5077]
[1737172893091,47.7276338,221.93,221.83,4.5077]
[1737172893289,47.7276338,221.93,221.82,27.7276338]
[1737172894011,4.55673504,221.96,221.84,27.7276338]
[1737172894226,0.05133504,221.96,221.86,27.7276338]
[1737172894711,0.05133504,221.96,221.88,27.7276338]
[1737172895095,0.05133504,221.96,221.91,27.7276338]
[1737172895412,0.05133504,221.96,221.95,27.7276338]
[1737172896094,3.504e-05,221.96,221.95,27.7276338]
[1737172896795,3.504e-05,221.96,221.95,32.2331338]
[1737172899617,3.504e-05,221.96,221.95,27.7276338]
[1737172899819,3.504e-05,221.96,221.93,27.7276338]
[1737172900006,3.504e-05,221.96,221.86,4.5073]
[1737172900007,3.504e-05,221.96,221.95,27.7276338]
[1737172902713,27.7906338,222.13,221.95,27.7276338]
[1737172902900,32.2299338,222.11,222.02,27.7276338]
[1737172903104,4.5023,222.11,222.04,27.7276338]
[1737172904024,4.5649,222.13,222.04,27.7276338]
[1737172904219,0.063,222.13,222.08,27.7276338]
[1737172904427,0.063,222.13,222.04,4.5035]
[1737172904428,0.063,222.13,222.1,27.7276338]
[1737172904612,0.063,222.13,222.12,27.7276338]
[1737172905212,0.063,222.23,222.12,55.4552676]
[1737172905533,0.063,222.3,222.2,27.7276338]
[1737172905730,0.063,222.3,222.29,55.4552676]
[1737172906621,0.063,222.3,222.29,27.7276338]
[1737172907132,4.5614,222.3,222.25,27.7276338]
[1737172907328,4.5614,222.3,222.18,4.5008]
[1737172907329,0.063,222.3,222.27,27.7276338]
[1737172907534,4.5615,222.3,222.19,27.7276338]
[1737172907907,4.5615,222.3,222.13,4.5017]
[1737172908111,4.5615,222.3,222.15,20.0]
[1737172908618,0.063,222.3,222.29,27.7276338]
[1737172910733,0.1508905,222.3,222.29,27.7276338]
[1737172911125,0.1508905,222.3,222.29,55.4552676]
[1737172911330,0.1508905,222.3,222.29,27.7276338]
[1737172912137,0.1508905,222.3,222.29,55.4552676]
[1737172912714,0.09432962,222.32,222.31,20.0]
[1737172913037,0.09432962,222.32,222.3,4.4984]
[1737172913038,11.2358,222.51,222.32,47.7276338]
[1737172913213,11.2358,222.51,222.37,20.0]
[1737172913214,4.4943,222.51,222.37,20.0]
[1737172913411,4.4944,222.5,222.33,20.0]
[1737172914017,47.7276338,222.48,222.37,27.7276338]
[1737172914226,47.7276338,222.48,222.33,20.0]
[1737172914227,20.0,222.4,222.27,4.499]
[1737172914414,20.0,222.4,222.34,27.7276338]
[1737172914614,27.7276338,222.41,222.31,27.7276338]
[1737172914839,20.0,222.34,222.27,27.7276338]
[1737172915140,27.7276338,222.33,222.23,27.7276338]
[1737172915436,27.7276338,222.36,222.24,27.7276338]
[1737172915638,4.58167184,222.38,222.3,27.7276338]
[1737172915810,4.58167184,222.38,222.32,27.7276338]
[1737172916012,24.58167184,222.38,222.32,27.7276338]
[1737172916644,4.58167184,222.38,222.32,27.7276338]
[1737172916813,0.08487184,222.38,222.36,27.7276338]
[1737172917014,0.08487184,222.38,222.27,15.7464]
[1737172917419,0.063,222.35,222.3,20.0]
[1737172917844,0.063,222.35,222.27,15.7464]
[1737172918131,0.063,222.35,222.27,4.4989]
[1737172918335,0.063,222.35,222.31,27.7276338]
[1737172918542,0.08487184,222.38,222.25,3.91329357]
[1737172918745,0.08487184,222.38,222.32,27.7276338]
[1737172919645,0.08487184,222.38,222.34,27.7276338]
[1737172920139,0.08487184,222.38,222.32,27.7276338]
[1737172920332,0.08487184,222.38,222.31,4.4982]
[1737172920531,0.08487184,222.38,222.32,27.7276338]
[1737172920742,7.184e-05,222.38,222.37,27.7276338]
[1737172921045,7.184e-05,222.38,222.3,27.7276338]
[1737172921621,7.184e-05,222.38,222.32,27.7276338]
[1737172921939,7.184e-05,222.38,222.34,27.7276338]
[1737172922134,7.184e-05,222.38,222.32,27.7276338]
[1737172922318,7.184e-05,222.38,222.34,27.7276338]
[1737172922738,7.184e-05,222.38,222.32,27.7276338]
[1737172923038,7.184e-05,222.38,222.17,27.7276338]
[1737172923039,20.0,222.31,222.2,0.03]
[1737172923227,27.7276338,222.32,222.21,27.7276338]
[1737172923430,7.184e-05,222.38,222.23,27.7276338]
[1737172923817,27.7276338,222.34,222.23,27.7276338]
[1737172924018,7.184e-05,222.38,222.2,15.7813]
[1737172924225,7.184e-05,222.38,222.24,4.4996]
[1737172924845,7.184e-05,222.38,222.2,0.03]
[1737172925041,27.7276338,222.24,222.2,0.03]
[1737172925341,27.7276338,222.3,222.2,0.03]
[1737172925511,27.7276338,222.3,222.2,4.5303]
[1737172925715,27.7276338,222.32,222.21,27.7276338]
[1737172926020,27.7276338,222.37,222.26,27.7276338]
[1737172926342,7.184e-05,222.38,222.22,42.63278287]
[1737172926527,27.7276338,222.35,222.25,27.7276338]
[1737172926730,27.7276338,222.35,222.23,32.2274338]
[1737172927224,27.7276338,222.37,222.25,27.7276338]
[1737172927425,11.2383,222.46,222.29,27.7276338]
[1737172927620,27.7276338,222.38,222.33,27.7276338]
[1737172927821,27.7276338,222.46,222.34,27.7276338]
[1737172928039,27.7276338,222.42,222.34,7.62005283]
[1737172928241,4.4952,222.46,222.2,0.03]
[1737172928418,15.7358,222.42,222.2,4.5303]
[1737172928621,27.7276338,222.34,222.23,27.7276338]
[1737172928924,27.7276338,222.34,222.21,7.62005283]
[1737172928925,47.7276338,222.25,222.2,0.03]
[1737172929118,27.7276338,222.23,222.2,0.03]
[1737172929318,20.0,222.25,222.2,0.03]
[1737172929319,27.7276338,222.25,222.2,0.03]
[1737172929946,20.0,222.28,222.2,0.03]
[1737172930124,27.64744929,222.26,222.2,0.03]
[1737172930320,27.7276338,222.24,222.2,0.03]
[1737172930537,88.883,222.42,222.2,0.03]
[1737172930538,27.7276338,222.28,222.2,0.03]
[1737172930849,0.08516347,222.21,222.2,27.7576338]
[1737172931046,0.08516347,222.21,222.2,0.03]
[1737172931223,0.08516347,222.21,221.92,0.67519677]
[1737172931551,27.7276338,222.1,221.99,27.7276338]
[1737172931768,11.17966347,222.21,222.01,27.7576338]
[1737172932051,27.7276338,222.17,222.06,27.7276338]
[1737172932344,0.08516347,222.21,222.11,27.7276338]
[1737172932646,20.08516347,222.21,222.11,32.2297338]
[1737172932827,27.7276338,222.2,222.09,4.5025]
[1737172933029,0.08516347,222.21,222.13,20.0]
[1737172933233,0.08516347,222.21,222.13,27.7276338]
[1737172933561,0.08516347,222.21,222.15,27.7276338]
[1737172934042,0.08516347,222.21,222.17,27.7276338]
[1737172934223,0.08516347,222.21,222.15,27.7276338]
[1737172934627,0.08516347,222.21,222.16,4.5012]
[1737172935032,0.08516347,222.21,222.13,27.7276338]
[1737172935351,27.81279727,222.21,222.14,20.0]
[1737172935931,0.08516347,222.21,222.2,47.7276338]
[1737172936130,0.09196366,222.24,222.2,47.7276338]
[1737172936333,27.7276338,222.22,222.12,15.7571]
[1737172936550,0.09196366,222.24,222.11,4.5022]
[1737172936855,27.7276338,222.21,222.11,4.5022]
[1737172937352,0.09196366,222.24,222.2,27.7276338]
[1737172937765,0.09196366,222.24,222.18,27.7276338]
[1737172938662,0.09196366,222.24,222.21,20.0]
[1737172938860,0.09196366,222.24,222.22,4.5]
[1737172939033,0.09196366,222.24,222.22,32.2276338]
[1737172939857,0.09196366,222.24,222.22,4.5]
[1737172940033,27.81959746,222.24,222.17,4.5009]
[1737172940240,0.09196366,222.24,222.17,27.7276338]
[1737172940764,0.063,222.22,222.18,27.7276338]
[1737172940970,0.063,222.22,222.19,4.5006]
[1737172941458,0.063,222.22,222.21,20.0]
[1737172943038,0.063,222.22,222.21,24.5002]
[1737172943558,0.063,222.22,222.21,4.5002]
[1737172944146,0.09196366,222.24,222.21,4.5002]
[1737172944768,27.7276338,222.23,222.14,4.5016]
[1737172944944,0.09196366,222.24,222.18,20.0]
[1737172945131,0.09196366,222.24,222.22,20.0]
[1737172945439,6.366e-05,222.24,222.23,20.0]
[1737172945648,6.366e-05,222.24,222.23,47.7276338]
[1737172946450,1.794e-05,222.25,222.23,47.7276338]
[1737172946858,1.794e-05,222.25,222.24,20.0]
[1737172947037,1.794e-05,222.25,222.21,27.7276338]
[1737172947038,1.794e-05,222.25,222.23,27.7276338]
[1737172947242,1.794e-05,222.25,222.24,4.4996]
[1737172949663,1.794e-05,222.25,222.24,18.61379295]
[1737172949858,4.999e-05,222.28,222.26,20.0]
[1737172950043,4.2e-06,222.3,222.29,20.0]
[1737172950372,4.2e-06,222.3,222.29,59.55410744]
[1737172950545,2.12e-06,222.3,222.29,59.55410744]
[1737172950947,8.073e-05,222.34,222.33,20.0]
[1737172951144,8.073e-05,222.34,222.33,55.72983934]
[1737172951353,8.073e-05,222.34,222.33,61.84182675]
[1737172952371,8.073e-05,222.34,222.33,66.33962675]
[1737172952670,0.063,222.45,222.37,20.0]
[1737172952874,0.063,222.45,222.42,27.7276338]
[1737172953645,0.063,222.45,222.44,27.7276338]
[1737172954446,0.063,222.45,222.44,4.4955]
[1737172956372,0.063,222.46,222.44,39.28378908]
[1737172956373,0.0001,222.46,222.44,39.28378908]
[1737172956559,0.0001,222.46,222.45,34.51395311]
[1737172956877,0.0001,222.46,222.45,41.84182675]
[1737172957167,0.0001,222.46,222.45,42.51580272]
[1737172957540,0.0001,222.46,222.45,44.27957614]
[1737172958885,0.063,222.59,222.5,20.0]
[1737172959087,0.063,222.59,222.57,27.7276338]
[1737172959393,0.063,222.59,222.53,27.7276338]
[1737172959776,27.7276338,222.55,222.51,6.78631931]
[1737172959969,27.7276338,222.55,222.46,57.57482675]
[1737172960279,27.7276338,222.51,222.46,11.28141931]
[1737172961190,27.7276338,222.47,222.4,17.972816]
[1737172961490,20.0,222.38,222.24,6.85914657]
[1737172961807,60.663,222.54,222.24,6.85914657]
[1737172962104,60.663,222.54,222.25,17.984291]
[1737172962261,20.0,222.51,222.25,17.984291]
[1737172962890,38.2021,222.5,222.26,4.4992]
[1737172963072,27.7276338,222.4,222.31,27.7276338]
[1737172963278,27.7276338,222.44,222.35,27.7276338]
[1737172963866,27.7276338,222.42,222.36,20.0]
[1737172964066,4.4943,222.5,222.36,20.0]
[1737172964067,27.7276338,222.44,222.36,47.7276338]
[1737172964272,27.7276338,222.46,222.36,47.7276338]
[1737172964493,27.7276338,222.46,222.37,4.497]
[1737172965393,27.7276338,222.4,222.35,24.4973]
[1737172965815,27.7276338,222.38,222.29,32.2262338]
[1737172966782,4.4958,222.43,222.24,0.03]
[1737172966783,27.7276338,222.34,222.24,0.03]
[1737172967092,27.7276338,222.29,222.24,0.03]
[1737172967505,27.7276338,222.31,222.24,0.03]
[1737172968608,27.7276338,222.32,222.24,0.03]
[1737172970005,27.7276338,222.36,222.27,27.7276338]
[1737172970303,27.7276338,222.42,222.31,27.7276338]
[1737172970682,0.09649992,222.32,222.28,20.0]
[1737172970981,0.09649992,222.32,222.3,20.0]
[1737172971176,0.09649992,222.32,222.28,27.7276338]
[1737172971492,0.09649992,222.32,222.24,27.7576338]
[1737172971693,27.7276338,222.3,222.24,0.03]
[1737172972010,27.82413372,222.32,222.24,4.5295]
[1737172973583,27.7276338,222.26,222.24,0.03]
[1737172974199,27.7276338,222.28,222.24,0.03]
[1737172974606,27.7276338,222.26,222.24,0.03]
[1737172975491,32.2269338,222.26,222.24,0.03]
[1737172976216,20.0,222.23,222.13,0.03]
[1737172976387,27.7276338,222.19,222.13,0.03]
[1737172976587,27.7276338,222.15,222.13,0.03]
[1737172977783,4.5016,222.14,222.13,0.03]
[1737172977987,20.0,222.11,222.01,27.7576338]
[1737172978309,47.7276338,222.11,222.01,27.7576338]
[1737172978706,20.0,222.02,222.01,0.03]
[1737172979315,27.7276338,222.03,222.01,0.0001]
[1737172979890,4.5037,222.04,222.01,0.0001]
[1737172980517,20.0,222.02,222.01,0.0001]
[1737172980716,27.7276338,222.03,222.01,0.0001]
[1737172981695,20.0,222.0,221.91,0.03]
[1737172981908,20.0,221.95,221.91,0.03]
[1737172982095,27.7276338,221.92,221.91,0.03]
[1737172982300,20.0,221.92,221.91,0.03]
[1737172983195,27.7276338,221.92,221.91,0.03]
[1737172983805,27.7276338,221.96,221.91,0.03]
[1737172984008,4.5055,221.95,221.91,0.03]
[1737172984521,27.7276338,221.94,221.91,0.03]
[1737172984722,27.7276338,221.92,221.91,0.03]
[1737172987823,27.7276338,221.94,221.91,0.03]
[1737172988232,32.2333338,221.94,221.91,0.03]
[1737172988427,27.7276338,221.92,221.91,0.03]
[1737172990625,32.2337338,221.92,221.91,0.03]
[1737172990815,27.7276338,221.92,221.91,0.03]
[1737172991912,32.2337338,221.92,221.91,0.03]
[1737172993244,27.7276338,221.92,221.91,0.03]
[1737172995239,32.2337338,221.92,221.91,0.03]
[1737172996940,27.7276338,221.92,221.91,0.03]
[1737172997325,32.2337338,221.92,221.91,0.03]
[1737172999371,27.7276338,222.0,221.91,27.7576338]
[1737172999531,27.7276338,222.02,221.94,20.0]
[1737173000031,27.7276338,222.02,221.93,27.7276338]
[1737173000230,27.7276338,222.02,221.93,45.7389668]
[1737173000814,11.3728,222.15,222.02,20.0]
[1737173001018,27.7276338,222.12,222.03,27.7276338]
[1737173001529,27.7276338,222.06,222.01,6.88]
[1737173001722,27.7276338,222.02,221.94,4.5057]
[1737173002047,27.7276338,222.0,221.94,4.5057]
[1737173002235,27.7276338,221.98,221.94,4.5057]
[1737173002438,27.7276338,221.96,221.91,0.03]
[1737173002742,33.6,222.14,221.91,4.5362]
[1737173002743,27.7276338,221.98,221.91,4.5362]
[1737173003040,27.7276338,222.02,221.94,20.0]
[1737173003245,27.7276338,222.02,221.97,20.0]
[1737173003826,27.7276338,222.0,221.91,15.802]
[1737173004328,27.7276338,222.02,221.94,20.0]
[1737173004519,27.7276338,222.04,221.94,27.7276338]
[1737173005045,27.7276338,222.04,221.95,4.5055]
[1737173005627,27.7276338,222.04,221.96,20.0]
[1737173006150,27.7276338,222.04,221.95,4.5055]
[1737173006745,27.7276338,221.99,221.96,20.0]
[1737173006944,27.7276338,221.99,221.95,4.5055]
[1737173006945,27.7276338,221.99,221.91,0.03]
[1737173007150,32.2323338,221.99,221.91,4.5361]
[1737173007823,27.7276338,221.99,221.91,4.5361]
[1737173009455,27.7276338,221.99,221.91,0.03]
[1737173009659,27.7276338,221.95,221.91,0.03]
[1737173009833,27.7276338,221.93,221.91,0.03]
[1737173010036,27.7276338,221.95,221.91,0.03]
[1737173010527,27.7276338,221.93,221.91,0.03]
[1737173011353,20.0,222.01,221.91,0.03]
[1737173011658,33.77216002,221.92,221.79,0.03]
[1737173011843,16.88608001,221.8,221.79,0.03]
[1737173012047,16.88608001,221.92,221.79,0.03]
[1737173012247,20.0,221.89,221.79,0.03]
[1737173012451,16.88608001,221.84,221.79,4.5387]
[1737173012758,16.88608001,221.82,221.79,0.03]
[1737173012942,16.88608001,221.8,221.79,0.03]
[1737173013348,20.0,221.77,221.68,0.03]
[1737173013557,27.49267402,221.72,221.68,0.03]
[1737173013748,11.3728,221.87,221.68,0.03]
[1737173013949,27.49267402,221.75,221.68,0.03]
[1737173014338,27.49267402,221.75,221.68,20.03]
[1737173014852,27.49267402,221.73,221.68,0.03]
[1737173015341,27.49267402,221.75,221.68,0.03]
[1737173015537,27.49267402,221.71,221.68,0.03]
[1737173015866,27.49267402,221.71,221.63,4.512]
[1737173016170,27.49267402,221.75,221.67,27.49267402]
[1737173016336,27.49267402,221.77,221.7,20.0]
[1737173016536,27.49267402,221.76,221.67,27.49267402]
[1737173016765,27.49267402,221.72,221.64,6.72]
[1737173017638,20.0,221.69,221.64,6.72]
[1737173017840,20.0,221.69,221.64,11.2317]
[1737173018261,27.49267402,221.7,221.64,11.2317]
[1737173018671,27.49267402,221.7,221.61,32.00487402]
[1737173019156,27.49267402,221.66,221.58,6.72]
[1737173019358,27.49267402,221.66,221.56,10.0]
[1737173019359,27.49267402,221.62,221.56,10.0]
[1737173019547,27.49267402,221.6,221.56,10.0]
[1737173019960,27.49267402,221.62,221.56,10.0]
[1737173020160,27.49267402,221.6,221.56,10.0]
[1737173021263,27.49267402,221.58,221.56,10.0]
[1737173021765,4.5132,221.57,221.56,10.0]
[1737173021964,27.49267402,221.6,221.56,10.0]
[1737173022473,27.49267402,221.62,221.56,10.0]
[1737173022854,32.00497402,221.62,221.56,10.0]
[1737173023169,27.49267402,221.7,221.61,27.49267402]
[1737173023543,27.49267402,221.68,221.59,27.49267402]
[1737173023969,27.49267402,221.68,221.6,4.5126]
[1737173024768,27.49267402,221.76,221.67,27.49267402]
[1737173024968,11.2706,221.82,221.6,15.7941]
[1737173024969,27.49267402,221.82,221.72,27.49267402]
[1737173025174,11.3728,221.88,221.72,27.49267402]
[1737173025175,27.49267402,221.8,221.72,27.49267402]
[1737173025972,27.49267402,221.8,221.72,32.00267402]
[1737173026468,27.49267402,221.82,221.72,32.00267402]
[1737173026661,27.49267402,221.82,221.74,27.49267402]
[1737173026972,4.5074,221.86,221.7,4.5104]
[1737173026973,27.49267402,221.78,221.7,4.5104]
[1737173027373,27.49267402,221.82,221.74,27.49267402]
[1737173027574,27.49267402,221.87,221.78,27.49267402]
[1737173028153,27.49267402,221.87,221.79,4.5087]
[1737173028444,27.49267402,221.89,221.8,27.49267402]
[1737173029668,13.06320034,221.95,221.8,27.49267402]
[1737173029876,27.49267402,221.88,221.8,32.00097402]
[1737173030374,27.49267402,221.87,221.78,27.49267402]
[1737173030673,27.49267402,221.82,221.74,32.00237402]
[1737173031167,27.49267402,221.84,221.76,27.49267402]
[1737173031351,27.49267402,221.86,221.76,27.49267402]
[1737173031755,27.49267402,221.86,221.8,4.5085]
[1737173031967,0.063,221.97,221.85,27.49267402]